bitfinex-derivatives/quotes_BTCF0:USTF0_20251002
["timestamp","ask_amount","ask_price","bid_price","bid_amount"]
[1759429846206,0.79530226,120100.0,120080.0,0.01338]
[1759429846207,0.0832278,120090.0,120080.0,0.01338]
[1759429846408,0.0832278,120090.0,120070.0,0.4800984]
[1759429846409,0.02137,120080.0,120070.0,0.4800984]
[1759429846614,0.75541755,120080.0,120070.0,0.03606]
[1759429846908,0.77756344,120080.0,120070.0,0.03606]
[1759429847105,0.78741344,120080.0,120070.0,0.02268]
[1759429847612,0.76937503,120080.0,120070.0,0.03606]
[1759429848006,0.68614033,120080.0,120070.0,0.03606]
[1759429848207,0.76937503,120080.0,120070.0,0.03606]
[1759429848409,0.04351589,120080.0,120070.0,0.44061382]
[1759429848713,0.80059589,120080.0,120070.0,0.80141382]
[1759429848901,0.04351589,120080.0,120070.0,0.80141382]
[1759429849208,0.77934589,120080.0,120070.0,1.20141382]
[1759429849618,0.72584083,120100.0,120090.0,0.1192877]
[1759429849911,1.4828136,120100.0,120090.0,0.44059992]
[1759429850108,0.04346138,120100.0,120090.0,0.44059992]
[1759429850302,0.75724,120100.0,120090.0,0.44059992]
[1759429850501,0.75724,120100.0,120090.0,0.84059992]
[1759429850705,0.3608,120110.0,120100.0,0.1192808]
[1759429850905,1.16155446,120110.0,120100.0,0.44059302]
[1759429851807,0.04339446,120110.0,120100.0,0.77043977]
[1759429852013,0.02137,120120.0,120110.0,0.0965925]
[1759429852208,0.80083307,120120.0,120110.0,0.44058472]
[1759429853609,0.80083307,120120.0,120110.0,0.80138472]
[1759429853809,0.02137,120120.0,120110.0,0.80138472]
[1759429854114,0.77877,120120.0,120110.0,0.80138472]
[1759429854308,0.48772491,120140.0,120130.0,0.01338]
[1759429854510,0.04339018,120140.0,120130.0,0.11926]
[1759429854713,0.77982018,120140.0,120130.0,1.28178872]
[1759429855214,0.80119018,120140.0,120120.0,0.4573827]
[1759429855515,1.2029189,120140.0,120120.0,0.4573827]
[1759429855710,0.80119018,120140.0,120130.0,0.03635]
[1759429856115,0.77917,120140.0,120130.0,0.03635]
[1759429856512,0.77917,120140.0,120130.0,0.11955]
[1759429858111,0.02137,120140.0,120130.0,0.88207872]
[1759429858414,0.67057,120140.0,120130.0,0.88207872]
[1759429860117,0.67057,120140.0,120130.0,0.79887872]
[1759429860417,0.67057,120140.0,120130.0,0.48035]
[1759429861015,1.03137,120140.0,120130.0,0.03635]
[1759429861712,1.03137,120140.0,120130.0,0.11955]
[1759429864521,1.1145631,120140.0,120120.0,0.77590872]
[1759429864722,1.03137,120140.0,120130.0,0.0832]
[1759429864923,1.03137,120140.0,120130.0,0.10586]
[1759429865620,1.03137,120140.0,120130.0,0.11953]
[1759429868827,0.67057,120140.0,120130.0,0.52125872]
[1759429869325,0.67057,120140.0,120130.0,0.11953]
[1759429869628,0.77901,120140.0,120130.0,0.88205872]
[1759429870423,0.77901,120140.0,120130.0,0.82939719]
[1759429871521,0.77873,120140.0,120130.0,0.82939719]
[1759429871823,0.77865,120140.0,120130.0,0.82939719]
[1759429872419,0.38235,120150.0,120140.0,0.0831931]
[1759429872621,1.13963,120150.0,120140.0,0.1195231]
[1759429873817,1.2228162,120150.0,120140.0,0.02266]
[1759429874018,1.2345562,120150.0,120130.0,0.4576647]
[1759429874516,1.2345562,120150.0,120130.0,0.4439947]
[1759429874715,1.58362339,120150.0,120130.0,0.4439947]
[1759429874925,1.2345562,120150.0,120130.0,0.4439947]
[1759429875226,1.2345562,120150.0,120130.0,0.4576647]
[1759429875525,1.2345562,120150.0,120140.0,0.02266]
[1759429876025,1.2345562,120150.0,120130.0,0.4576647]
[1759429876325,1.55590672,120150.0,120130.0,0.4576647]
[1759429876514,1.2228162,120150.0,120140.0,0.1058531]
[1759429876714,1.2345562,120150.0,120140.0,0.1058531]
[1759429876926,1.55590672,120150.0,120140.0,0.02266]
[1759429877121,0.1047431,120140.0,120120.0,0.4573848]
[1759429877324,1.55395052,120130.0,120110.0,0.01338]
[1759429877529,0.03329,120110.0,120100.0,0.4576845]
[1759429877828,1.55621442,120110.0,120090.0,0.0972346]
[1759429878023,0.42612132,120100.0,120090.0,0.00034]
[1759429878528,0.1047708,120100.0,120090.0,0.1062277]
[1759429878917,0.1047708,120100.0,120090.0,0.03667]
[1759429879321,0.1047708,120100.0,120090.0,0.00034]
[1759429879926,0.1047708,120100.0,120090.0,0.023]
[1759429880226,0.1047708,120100.0,120090.0,0.00034]
[1759429881118,0.11307132,120100.0,120090.0,0.00034]
[1759429881323,0.11307132,120100.0,120090.0,0.03667]
[1759429882128,0.47387132,120100.0,120090.0,0.00034]
[1759429882327,1.22329448,120100.0,120090.0,0.00034]
[1759429883828,1.24527919,120100.0,120090.0,0.00034]
[1759429884230,1.22329448,120100.0,120090.0,0.00034]
[1759429884626,1.22329448,120100.0,120070.0,0.0832398]
[1759429884830,0.39503,120080.0,120070.0,0.1049598]
[1759429885137,0.39503,120080.0,120070.0,0.1177898]
[1759429885331,0.4782647,120080.0,120070.0,0.1177898]
[1759429885529,0.4672847,120080.0,120070.0,0.1177898]
[1759429887235,0.4672847,120080.0,120070.0,0.03455]
[1759429887422,0.4672847,120080.0,120070.0,0.02172]
[1759429887823,0.8280847,120080.0,120070.0,0.02172]
[1759429888135,0.1053116,120070.0,120060.0,0.03604]
[1759429888336,1.2236316,120070.0,120060.0,0.03604]
[1759429888937,0.77959,120070.0,120060.0,0.1192885]
[1759429889134,0.8628316,120070.0,120060.0,0.03604]
[1759429889440,1.2236316,120070.0,120060.0,0.1192885]
[1759429890438,1.14039,120070.0,120060.0,0.1192885]
[1759429891037,0.77959,120070.0,120060.0,0.1192885]
[1759429893437,0.7572,120070.0,120060.0,0.5192885]
[1759429893743,0.8625116,120070.0,120060.0,0.43604]
[1759429894138,0.8625116,120070.0,120060.0,0.5192885]
[1759429894549,0.77927,120070.0,120060.0,0.5192885]
[1759429895238,0.8625116,120070.0,120060.0,0.03604]
[1759429895437,0.8625116,120070.0,120060.0,0.1192885]
[1759429896243,0.8742516,120070.0,120050.0,0.45782738]
[1759429896444,1.22367476,120070.0,120060.0,0.02237]
[1759429896840,1.22367476,120070.0,120060.0,0.1056185]
[1759429896841,0.8561064,120070.0,120060.0,0.1056185]
[1759429897044,0.8443664,120070.0,120060.0,0.1186585]
[1759429897239,0.927608,120070.0,120060.0,0.1186585]
[1759429897544,0.8443664,120070.0,120060.0,0.1186585]
[1759429899743,0.8443664,120070.0,120050.0,0.00010628]
[1759429899744,0.1162985,120060.0,120050.0,0.00010628]
[1759429899945,0.82652166,120060.0,120050.0,0.00010628]
[1759429900536,0.0832624,120040.0,120030.0,0.03541]
[1759429900737,1.2234924,120040.0,120030.0,0.1186793]
[1759429901142,0.77939,120040.0,120030.0,0.1186793]
[1759429901543,0.77949025,120040.0,120030.0,0.1186793]
[1759429901840,1.22355265,120040.0,120030.0,0.03541]
[1759429902039,0.86275265,120040.0,120030.0,0.1186793]
[1759429902547,0.77949025,120040.0,120030.0,0.1186793]
[1759429902952,0.02217025,120040.0,120030.0,0.1186793]
[1759429903153,0.77953025,120040.0,120030.0,0.1186793]
[1759429904050,0.77945025,120040.0,120030.0,0.44056657]
[1759429904455,0.86271265,120040.0,120030.0,0.35729727]
[1759429904655,0.77945025,120040.0,120030.0,0.1186794]
[1759429907154,0.77945025,120040.0,120030.0,0.4794794]
[1759429907751,0.77921025,120040.0,120030.0,0.4794794]
[1759429908655,0.02217025,120040.0,120030.0,1.20136667]
[1759429908857,0.02207,120050.0,120040.0,0.1186724]
[1759429909157,0.02207,120060.0,120050.0,0.1186655]
[1759429909350,0.77915,120060.0,120050.0,0.44055277]
[1759429909657,0.77915,120060.0,120050.0,0.1186655]
[1759429910957,0.77931,120060.0,120050.0,0.1186655]
[1759429913260,0.80130753,120060.0,120050.0,0.1186655]
[1759429913760,0.80118753,120060.0,120050.0,0.1186655]
[1759429914760,0.04406753,120060.0,120050.0,0.4794655]
[1759429915160,0.80102753,120060.0,120050.0,0.80135277]
[1759429916261,0.80102753,120060.0,120050.0,0.4794655]
[1759429916757,0.77887753,120060.0,120050.0,0.80135277]
[1759429917452,0.77887753,120060.0,120050.0,0.80979761]
[1759429917654,0.80197753,120060.0,120050.0,0.80979761]
[1759429919456,0.04509753,120060.0,120050.0,0.80979761]
[1759429919653,0.80197753,120060.0,120050.0,0.80979761]
[1759429921356,0.02199753,120060.0,120050.0,0.80979761]
[1759429921553,0.0881964,120070.0,120060.0,0.1194585]
[1759429921756,0.11020675,120070.0,120060.0,0.44134577]
[1759429921955,0.86684675,120070.0,120060.0,0.80214577]
[1759429922759,0.86684675,120070.0,120060.0,0.4802585]
[1759429923455,0.86684675,120070.0,120060.0,0.80214577]
[1759429924562,0.11020675,120070.0,120060.0,0.80214577]
[1759429924756,0.86668675,120070.0,120060.0,0.80214577]
[1759429925460,0.0231,120080.0,120070.0,0.0965016]
[1759429925660,0.0231,120090.0,120070.0,0.77918887]
[1759429925962,0.77974,120090.0,120080.0,0.80213197]
[1759429926959,0.0231,120090.0,120080.0,0.80213197]
[1759429927161,0.77974,120090.0,120080.0,0.80213197]
[1759429929769,0.77974,120090.0,120070.0,0.3608]
[1759429929770,0.03484,120080.0,120070.0,0.3608]
[1759429929963,0.35672727,120080.0,120070.0,0.38375]
[1759429930166,0.03484,120080.0,120070.0,0.38375]
[1759429930468,0.34498727,120080.0,120070.0,0.4802516]
[1759429930663,0.0231,120080.0,120070.0,0.4802516]
[1759429932071,0.0231,120090.0,120080.0,0.1194442]
[1759429932271,0.77958,120090.0,120080.0,0.44103987]
[1759429932470,1.18440337,120090.0,120080.0,0.35780567]
[1759429932671,1.18440337,120090.0,120080.0,0.02295]
[1759429933170,1.55694337,120090.0,120080.0,0.02295]
[1759429933369,1.55694337,120090.0,120070.0,0.77889707]
[1759429933572,0.42793037,120080.0,120070.0,0.71860567]
[1759429933774,0.1063347,120080.0,120070.0,0.39701]
[1759429933967,0.42793037,120080.0,120070.0,0.39701]
[1759429934574,0.34469567,120080.0,120070.0,0.4802516]
[1759429934976,0.34469567,120080.0,120070.0,0.1194516]
[1759429935768,0.34469567,120080.0,120070.0,0.4802516]
[1759429935977,0.34469567,120080.0,120070.0,0.80184727]
[1759429936479,0.0231,120080.0,120070.0,0.80184727]
[1759429937179,0.77966,120080.0,120070.0,0.80184727]
[1759429937881,1.10125567,120080.0,120070.0,0.80184727]
[1759429941382,0.77966,120080.0,120070.0,0.80184727]
[1759429941975,1.10125567,120080.0,120070.0,0.80184727]
[1759429942183,1.10125567,120080.0,120070.0,0.4802516]
[1759429942381,1.10125567,120080.0,120070.0,0.80184727]
[1759429944277,0.77966,120080.0,120070.0,0.80184727]
[1759429946579,0.77966,120080.0,120070.0,0.03621]
[1759429946781,1.10125567,120080.0,120070.0,0.35780567]
[1759429947385,1.10125567,120080.0,120070.0,0.44104727]
[1759429948778,1.11110567,120080.0,120070.0,0.1194516]
[1759429948980,1.43270134,120080.0,120070.0,0.1194516]
[1759429949182,1.43270134,120080.0,120070.0,0.1061916]
[1759429950191,1.43270134,120080.0,120070.0,0.02295]
[1759429951090,1.43270134,120080.0,120070.0,0.1061916]
[1759429951284,1.10125567,120080.0,120070.0,0.1194016]
[1759429952293,0.34469567,120080.0,120070.0,0.1194016]
[1759429952487,1.10065567,120080.0,120070.0,0.1194016]
[1759429953192,1.50065567,120080.0,120070.0,0.1061916]
[1759429953692,1.50065567,120080.0,120070.0,0.1194016]
[1759429953888,1.50065567,120080.0,120070.0,0.44099727]
[1759429954392,0.77906,120080.0,120070.0,0.44099727]
[1759429954897,0.77906,120080.0,120070.0,0.1194016]
[1759429955093,1.10065567,120080.0,120070.0,0.44099727]
[1759429955287,1.08712572,120080.0,120070.0,0.44099727]
[1759429955592,1.08712572,120080.0,120070.0,0.1194016]
[1759429959191,0.76553005,120080.0,120070.0,0.1194016]
[1759429959389,1.08712572,120080.0,120070.0,0.44099727]
[1759429962599,1.08712572,120080.0,120070.0,0.1194016]
[1759429963900,1.40872139,120080.0,120070.0,0.0832416]
[1759429964093,1.4307921,120080.0,120070.0,0.0832416]
[1759429964400,1.40872139,120080.0,120070.0,0.0832416]
[1759429964799,1.40872139,120080.0,120070.0,0.1055316]
[1759429965797,0.33116572,120080.0,120070.0,0.1187416]
[1759429966098,1.40872139,120080.0,120070.0,0.1187416]
[1759429966299,0.76553005,120080.0,120070.0,0.1187416]
[1759429966504,1.40872139,120080.0,120070.0,0.1187416]
[1759429967000,0.76553005,120080.0,120070.0,0.1187416]
[1759429967203,1.40872139,120080.0,120070.0,0.1187416]
[1759429968304,0.33116572,120080.0,120070.0,0.4795416]
[1759429968602,0.76549005,120080.0,120070.0,0.80113727]
[1759429969095,0.00957005,120080.0,120070.0,0.80113727]
[1759429969303,1.08708572,120080.0,120070.0,0.80113727]
[1759429969692,0.33116572,120080.0,120070.0,0.80113727]
[1759429969893,1.08708572,120080.0,120070.0,0.80113727]
[1759429970098,0.76549005,120080.0,120070.0,0.80113727]
[1759429973098,1.08708572,120080.0,120070.0,0.80113727]
[1759429973504,1.08708572,120080.0,120070.0,0.4795416]
[1759429973711,1.08708572,120080.0,120070.0,0.80113727]
[1759429974502,1.08708572,120080.0,120070.0,0.3963]
[1759429974806,1.08708572,120080.0,120070.0,0.80113727]
[1759429975304,1.08708572,120080.0,120070.0,0.4795416]
[1759429976106,1.40868139,120080.0,120070.0,0.4795416]
[1759429976309,1.40868139,120080.0,120070.0,0.0355]
[1759429977305,1.40868139,120080.0,120070.0,0.1187416]
[1759429979506,1.08708572,120080.0,120070.0,0.1187416]
[1759429979707,0.65276139,120080.0,120060.0,0.4573067]
[1759429979907,0.0227,120070.0,120060.0,0.80176237]
[1759429980108,0.33076528,120070.0,120060.0,0.80176237]
[1759429980411,0.88100528,120070.0,120060.0,0.80176237]
[1759429981111,0.94615494,120070.0,120060.0,0.80176237]
[1759429982812,1.15183494,120070.0,120060.0,0.80176237]
[1759429983714,1.15183494,120070.0,120060.0,0.4801667]
[1759429983910,1.15183494,120070.0,120060.0,0.80176237]
[1759429985713,0.39591494,120070.0,120060.0,0.80176237]
[1759429985916,0.07431927,120070.0,120060.0,1.12335804]
[1759429986113,0.83023927,120070.0,120060.0,1.12335804]
[1759429987313,0.07431927,120070.0,120060.0,1.12335804]
[1759429987515,0.83023927,120070.0,120060.0,1.12335804]
[1759429988112,0.82106966,120070.0,120060.0,1.12335804]
[1759429988514,0.06514966,120070.0,120060.0,1.12335804]
[1759429988715,0.75592,120070.0,120060.0,1.12335804]
[1759429989411,0.76473,120070.0,120060.0,1.12335804]
[1759429990109,0.79646713,120100.0,120090.0,0.01312]
[1759429990315,1.25285203,120100.0,120090.0,0.01312]
[1759429990516,1.89604337,120100.0,120090.0,0.01312]
[1759429990719,1.25285203,120100.0,120080.0,0.03598]
[1759429990918,0.32159567,120090.0,120080.0,0.03598]
[1759429991120,0.34365624,120090.0,120080.0,0.03598]
[1759429992318,1.09966428,120090.0,120080.0,0.03598]
[1759429992615,1.09966428,120090.0,120080.0,0.1192147]
[1759429992820,0.77798057,120090.0,120080.0,0.1192147]
[1759429993016,0.77423779,120100.0,120090.0,0.03598]
[1759429993320,1.55221742,120100.0,120080.0,0.1192135]
[1759429993519,0.32168371,120090.0,120080.0,0.1192135]
[1759429993714,0.34374334,120090.0,120080.0,0.1192135]
[1759429997332,0.34374334,120090.0,120080.0,0.03598]
[1759429997534,0.34374334,120090.0,120080.0,0.0963547]
[1759429997729,0.34374334,120090.0,120080.0,0.4571547]
[1759429997933,0.02205963,120090.0,120080.0,0.1192147]
[1759429998134,1.09962334,120090.0,120080.0,0.4800147]
[1759429998633,1.09962334,120090.0,120080.0,0.1192147]
[1759430000638,0.77793963,120090.0,120080.0,0.1192147]
[1759430000838,1.09962334,120090.0,120080.0,0.1192147]
[1759430001139,1.07756371,120090.0,120080.0,0.1192147]
[1759430001337,0.75584,120090.0,120080.0,0.1192147]
[1759430001538,1.07752371,120090.0,120080.0,0.1192147]
[1759430002638,0.75584,120090.0,120080.0,0.1192147]
[1759430002834,1.07752371,120090.0,120080.0,0.1192147]
[1759430006238,1.09957921,120090.0,120080.0,0.1192147]
[1759430007336,0.0220555,120090.0,120080.0,0.80169841]
[1759430007635,0.06510799,120110.0,120100.0,0.1188408]
[1759430007841,0.00850436,120120.0,120110.0,0.1188284]
[1759430008038,0.36604767,120130.0,120120.0,0.097177]
[1759430008229,0.02204961,120130.0,120120.0,0.479627]
[1759430008837,0.77784961,120130.0,120120.0,0.479627]
[1759430009029,0.7558,120130.0,120120.0,0.479627]
[1759430010143,0.46629498,120160.0,120140.0,0.03562]
[1759430010344,1.07744371,120150.0,120140.0,0.03562]
[1759430010543,1.16697695,120150.0,120140.0,0.03562]
[1759430010847,1.25016315,120150.0,120140.0,0.03562]
[1759430011250,1.25862664,120150.0,120140.0,0.01397]
[1759430012555,1.25862664,120150.0,120140.0,0.0971631]
[1759430014056,2.34111035,120150.0,120130.0,0.01397]
[1759430014251,0.32168371,120140.0,120130.0,0.0831998]
[1759430014549,0.34367543,120140.0,120130.0,0.0971698]
[1759430014755,0.34367543,120140.0,120130.0,0.4579698]
[1759430015652,0.34367543,120140.0,120130.0,0.4796198]
[1759430016056,0.34367543,120140.0,120130.0,0.39642]
[1759430017245,0.34367543,120140.0,120130.0,0.47962]
[1759430017453,1.09927543,120140.0,120130.0,0.47962]
[1759430019362,1.09927543,120140.0,120130.0,0.39642]
[1759430019661,0.02199172,120140.0,120130.0,1.20130371]
[1759430019858,0.00846349,120150.0,120140.0,0.1188131]
[1759430020060,0.4439775,120170.0,120160.0,0.01397]
[1759430020358,1.4854741,120170.0,120160.0,0.03562]
[1759430020558,0.0831793,120160.0,120150.0,0.03562]
[1759430020762,0.10511219,120160.0,120150.0,0.03562]
[1759430020958,0.1051122,120160.0,120150.0,0.03562]
[1759430021849,0.49345358,120160.0,120150.0,0.03562]
[1759430022051,0.08859057,120160.0,120150.0,0.03562]
[1759430023051,0.08859057,120160.0,120150.0,0.39642]
[1759430023359,0.0219329,120160.0,120150.0,0.39642]
[1759430023755,1.47183925,120170.0,120160.0,0.03562]
[1759430023956,1.17207565,120170.0,120160.0,0.03562]
[1759430024353,1.49375936,120170.0,120160.0,0.01397]
[1759430025964,1.49375936,120170.0,120150.0,0.39642]
[1759430026262,0.32168371,120160.0,120150.0,0.37477]
[1759430026665,0.40486291,120160.0,120150.0,0.37477]
[1759430027064,0.32168371,120160.0,120150.0,0.37477]
[1759430027660,0.76566301,120160.0,120150.0,0.01397]
[1759430027963,1.18758024,120160.0,120140.0,0.03562]
[1759430028164,1.07728371,120150.0,120140.0,0.03562]
[1759430028957,1.16046991,120150.0,120140.0,0.01397]
[1759430029158,1.1823904,120150.0,120140.0,0.01397]
[1759430031063,1.1823904,120150.0,120130.0,0.4796165]
[1759430031268,0.32168371,120140.0,120130.0,0.4796165]
[1759430032564,0.78762141,120140.0,120130.0,0.01397]
[1759430032869,0.78762189,120140.0,120130.0,0.01397]
[1759430035869,0.78762189,120140.0,120120.0,0.4796267]
[1759430036067,1.07724371,120130.0,120120.0,0.4796267]
[1759430036271,1.09918879,120130.0,120120.0,0.4796267]
[1759430036663,1.09918879,120130.0,120120.0,0.39642]
[1759430037772,0.34362879,120130.0,120120.0,0.479627]
[1759430037966,1.09906879,120130.0,120120.0,0.479627]
[1759430038377,1.09906879,120130.0,120120.0,0.01397]
[1759430038676,1.09906879,120130.0,120120.0,0.03635]
[1759430038876,1.09906879,120130.0,120120.0,0.01397]
[1759430039077,0.34362879,120130.0,120120.0,0.01397]
[1759430039279,1.09906879,120130.0,120120.0,0.03635]
[1759430039579,0.02194508,120130.0,120120.0,0.119557]
[1759430039878,0.40513141,120140.0,120130.0,0.03499]
[1759430040280,0.02201773,120140.0,120130.0,0.80067371]
[1759430040677,0.77753773,120140.0,120130.0,0.80067371]
[1759430041177,0.02201773,120140.0,120130.0,0.80067371]
[1759430041378,0.02201773,120140.0,120130.0,1.20067371]
[1759430041673,0.79550007,120160.0,120150.0,0.01261]
[1759430041674,0.81781375,120160.0,120150.0,0.01261]
[1759430041873,0.81781375,120160.0,120150.0,0.03499]
[1759430041874,1.20479167,120160.0,120150.0,0.03499]
[1759430042180,1.56559167,120160.0,120150.0,0.01261]
[1759430042475,1.59542493,120160.0,120150.0,0.01261]
[1759430043076,0.0831862,120150.0,120140.0,0.03499]
[1759430043283,0.78768489,120150.0,120140.0,0.03499]
[1759430043978,1.1093686,120150.0,120140.0,0.01261]
[1759430044183,0.0831931,120140.0,120130.0,0.01261]
[1759430044380,1.54361179,120140.0,120130.0,0.01261]
[1759430044781,0.0832,120130.0,120120.0,0.03635]
[1759430044974,0.42689869,120130.0,120120.0,0.03635]
[1759430045385,1.18301869,120130.0,120120.0,0.03635]
[1759430045877,0.10521498,120130.0,120120.0,0.03635]
[1759430046077,0.34369869,120130.0,120120.0,0.119557]
[1759430046284,0.02201498,120130.0,120120.0,0.880357]
[1759430046485,1.16096371,120130.0,120120.0,0.03635]
[1759430046788,1.09977869,120130.0,120120.0,0.03635]
[1759430046976,0.77809498,120130.0,120120.0,0.03635]
[1759430047181,1.09977869,120130.0,120120.0,0.480357]
[1759430048193,1.09977869,120130.0,120120.0,0.39715]
[1759430048194,1.18297869,120130.0,120120.0,0.39715]
[1759430049487,1.24949331,120130.0,120120.0,0.39715]
[1759430050090,1.16629331,120130.0,120120.0,0.39715]
[1759430050388,0.41021331,120130.0,120120.0,0.480357]
[1759430050589,0.8446896,120130.0,120120.0,0.480357]
[1759430050789,1.16637331,120130.0,120120.0,0.480357]
[1759430051088,1.24957331,120130.0,120120.0,0.03635]
[1759430051782,1.16637331,120130.0,120120.0,0.03635]
[1759430052085,1.16637331,120130.0,120120.0,0.119557]
[1759430052684,1.16637331,120130.0,120120.0,0.03635]
[1759430052987,1.24957331,120130.0,120120.0,0.03635]
[1759430053991,1.24757331,120130.0,120120.0,0.03635]
[1759430054188,0.9258896,120130.0,120120.0,0.03635]
[1759430054488,1.24736569,120130.0,120120.0,0.03635]
[1759430055279,0.40800569,120130.0,120120.0,0.119557]
[1759430055694,0.8424096,120130.0,120120.0,0.119557]
[1759430056084,0.40800569,120130.0,120120.0,0.119557]
[1759430056485,1.16384569,120130.0,120120.0,0.44103309]
[1759430056888,1.16384569,120130.0,120120.0,0.03635]
[1759430057190,0.40800569,120130.0,120120.0,0.119557]
[1759430057393,1.16380569,120130.0,120120.0,0.119557]
[1759430057591,0.0865296,120130.0,120120.0,0.119557]
[1759430057787,1.16376569,120130.0,120120.0,0.119557]
[1759430057991,0.8422896,120130.0,120120.0,0.44103309]
[1759430058193,1.16376569,120130.0,120120.0,0.44103309]
[1759430058391,1.14375071,120130.0,120120.0,0.44103309]
[1759430058692,0.32147609,120140.0,120130.0,0.11819]
[1759430058986,0.32147609,120150.0,120140.0,0.1181831]
[1759430059192,0.78777337,120160.0,120150.0,0.03499]
[1759430059193,0.76545969,120160.0,120150.0,0.03499]
[1759430059387,1.08693578,120160.0,120150.0,0.03499]
[1759430059585,1.84309578,120160.0,120150.0,0.03499]
[1759430059987,1.39911218,120160.0,120150.0,0.1181762]
[1759430060190,1.39911218,120160.0,120150.0,0.03499]
[1759430060191,1.48229148,120160.0,120150.0,0.03499]
[1759430060587,1.84309148,120160.0,120150.0,0.03499]
[1759430061792,1.2001393,120160.0,120150.0,0.03499]
[1759430062194,1.84309148,120160.0,120150.0,0.03499]
[1759430062898,1.2001393,120160.0,120150.0,0.1181762]
[1759430063186,1.84289148,120160.0,120150.0,0.03499]
[1759430063406,0.4439793,120160.0,120150.0,0.03499]
[1759430063701,1.84289148,120160.0,120150.0,0.03499]
[1759430064502,0.0831862,120150.0,120140.0,0.4798431]
[1759430064698,0.40466229,120150.0,120140.0,0.4798431]
[1759430064893,0.32147609,120150.0,120140.0,0.4798431]
[1759430065093,0.32147609,120150.0,120140.0,0.1190431]
[1759430065493,0.32147609,120150.0,120140.0,0.4798431]
[1759430066097,1.52142019,120160.0,120150.0,0.03629]
[1759430066297,1.10894834,120160.0,120150.0,0.03629]
[1759430066496,1.86478834,120160.0,120150.0,0.03629]
[1759430067798,1.10894834,120160.0,120150.0,0.03629]
[1759430068000,1.86466834,120160.0,120150.0,0.03629]
[1759430068202,1.86466834,120160.0,120150.0,0.01324]
[1759430068499,1.86466834,120160.0,120140.0,0.1188531]
[1759430068500,1.86466794,120160.0,120140.0,0.1188531]
[1759430068801,1.54319185,120160.0,120140.0,0.4796531]
[1759430069195,0.46599576,120160.0,120150.0,0.03629]
[1759430069404,1.86458794,120160.0,120150.0,0.03629]
[1759430069598,1.86458794,120160.0,120150.0,0.01324]
[1759430069798,1.22163576,120160.0,120150.0,0.01324]
[1759430069996,1.86458794,120160.0,120150.0,0.01324]
[1759430070199,1.86458794,120160.0,120140.0,0.4566013]
[1759430070400,0.64295218,120150.0,120140.0,0.4796513]
[1759430071003,0.76545979,120160.0,120150.0,0.01324]
[1759430071307,1.54302743,120160.0,120150.0,0.01324]
[1759430071995,1.54302743,120160.0,120140.0,0.4796513]
[1759430072301,1.07695609,120150.0,120140.0,0.4796513]
[1759430073306,1.16014229,120150.0,120140.0,0.03566]
[1759430073504,1.16014229,120150.0,120140.0,0.1188531]
[1759430073906,1.07695609,120150.0,120140.0,0.1188531]
[1759430074895,1.07695609,120150.0,120140.0,0.03566]
[1759430074896,1.16014229,120150.0,120140.0,0.03566]
[1759430075105,1.16014229,120150.0,120140.0,0.1188531]
[1759430075298,1.07695609,120150.0,120140.0,0.1188531]
[1759430075807,1.16014229,120150.0,120140.0,0.1188531]
[1759430076199,1.07695609,120150.0,120140.0,0.1188531]
[1759430076406,0.75548,120150.0,120140.0,0.1188531]
[1759430076601,0.4439841,120160.0,120150.0,0.01324]
[1759430076801,1.86438345,120160.0,120150.0,0.03629]
[1759430077406,1.86438345,120160.0,120150.0,0.01324]
[1759430077709,0.0831862,120150.0,120140.0,0.4796529]
[1759430077911,1.1994237,120160.0,120140.0,0.4796529]
[1759430078107,0.32147609,120150.0,120140.0,0.4796529]
[1759430078513,0.32147609,120150.0,120140.0,0.1188529]
[1759430079403,0.32147609,120150.0,120140.0,0.4796529]
[1759430080012,0.34348642,120150.0,120140.0,0.1188529]
[1759430080711,0.40466219,120150.0,120140.0,0.03566]
[1759430081012,0.42667392,120150.0,120140.0,0.03566]
[1759430081513,0.42667392,120150.0,120130.0,0.80112979]
[1759430081709,1.07691609,120140.0,120130.0,0.80112979]
[1759430082915,1.07691609,120140.0,120130.0,0.4796537]
[1759430083215,1.07691609,120140.0,120130.0,0.80112979]
[1759430084310,1.07691609,120140.0,120130.0,0.4796537]
[1759430084507,1.07691609,120140.0,120130.0,0.80112979]
[1759430086011,0.32147609,120140.0,120130.0,0.4796537]
[1759430086212,1.07691609,120140.0,120130.0,0.80112979]
[1759430086907,1.07691609,120140.0,120130.0,0.4796537]
[1759430087107,1.88158528,120140.0,120130.0,0.01261]
[1759430087313,1.90362573,120140.0,120120.0,0.39782]
[1759430087512,1.90362573,120140.0,120120.0,0.4810266]
[1759430087513,0.32147609,120130.0,120120.0,0.4810266]
[1759430087707,1.07691609,120130.0,120120.0,0.4810266]
[1759430088710,1.09895957,120130.0,120120.0,0.03702]
[1759430089416,1.07691609,120130.0,120120.0,0.03702]
[1759430089910,0.42671327,120130.0,120120.0,0.03702]
[1759430090112,1.09895327,120130.0,120120.0,0.1202269]
[1759430090415,0.34351327,120130.0,120120.0,0.1202269]
[1759430090716,1.09895327,120130.0,120120.0,0.1202269]
[1759430091414,1.16504198,120130.0,120120.0,0.1202269]
[1759430091718,0.84356589,120130.0,120120.0,0.1202269]
[1759430092018,0.77747718,120130.0,120120.0,1.84545517]
[1759430092213,0.40466219,120150.0,120140.0,0.03629]
[1759430092419,0.34350082,120150.0,120140.0,0.03629]
[1759430092712,0.77758473,120150.0,120140.0,0.03629]
[1759430092915,0.76545839,120160.0,120150.0,0.03629]
[1759430093122,1.54304126,120160.0,120150.0,0.03629]
[1759430093422,1.86451735,120160.0,120150.0,0.03629]
[1759430093611,0.70429896,120160.0,120150.0,0.35776609]
[1759430093916,0.34349896,120160.0,120150.0,0.35776609]
[1759430094123,0.02202287,120160.0,120150.0,0.35776609]
[1759430094416,0.77766287,120160.0,120150.0,0.35776609]
[1759430095620,1.09913896,120160.0,120150.0,0.80175219]
[1759430096014,0.34349896,120160.0,120150.0,0.80175219]
[1759430096214,1.09917896,120160.0,120150.0,0.80175219]
[1759430096912,1.09917896,120160.0,120150.0,0.4802761]
[1759430097116,1.09917896,120160.0,120150.0,0.80175219]
[1759430097313,0.77770287,120160.0,120150.0,0.80175219]
[1759430097522,1.09917896,120160.0,120150.0,0.80175219]
[1759430097724,1.09917896,120160.0,120150.0,0.4802761]
[1759430097919,1.09917896,120160.0,120150.0,0.80175219]
[1759430101316,1.09917896,120160.0,120150.0,0.4802761]
[1759430102525,1.42065505,120160.0,120150.0,0.4802761]
[1759430103024,1.50383435,120160.0,120150.0,0.1194761]
[1759430103725,0.86088217,120160.0,120150.0,0.1194761]
[1759430103916,1.50383435,120160.0,120150.0,0.1194761]
[1759430104416,1.42065505,120160.0,120150.0,0.1194761]
[1759430104730,1.86463425,120160.0,120140.0,0.1180368]